fUSD/lending_fUSD_20240813
["ID","MTS","AMOUNT","RATE_DAILY","PERIOD"]
[334763464,1723537851455,-400.0,0.00015305,2]
[334763466,1723537851464,-500.0,0.00015331,2]
[334763468,1723537851474,-12890.7917586,0.00015331,3]
[334763470,1723537851484,-15212.7513429,0.00015332,3]
[334763472,1723537851493,-1078.52,0.00015339,2]
[334763474,1723537851503,-500.0,0.00015339,2]
[334763476,1723537851512,-500.0,0.00015339,2]
[334763478,1723537851522,-438.6074608,0.00015339,2]
[334763480,1723537851532,-420.76772522,0.00015339,2]
[334763482,1723537851541,-500.0,0.00015339,2]
[334763484,1723537851551,-619.04,0.00015339,2]
[334763486,1723537851562,-381.95090448,0.0001534,2]
[334763488,1723537851574,-500.0,0.0001534,2]
[334763490,1723537851584,-500.0,0.0001534,2]
[334763492,1723537851594,-500.0,0.0001534,2]
[334763494,1723537851603,-500.0,0.0001534,2]
[334763496,1723537851614,-155.71607499,0.0001534,2]
[334763498,1723537851624,-1425.34,0.0001534,2]
[334763500,1723537851634,-500.0,0.0001534,2]
[334763502,1723537851644,-152.52939589,0.00015341,2]
[334763504,1723537851654,-500.0,0.00015341,2]
[334763506,1723537851663,-500.0,0.00015341,2]
[334763508,1723537851673,-500.0,0.00015341,2]
[334763510,1723537851683,-500.0,0.00015341,2]
[334763512,1723537851692,-500.0,0.00015341,2]
[334763514,1723537851702,-500.0,0.00015341,2]
[334763516,1723537851711,-500.0,0.00015341,2]
[334763518,1723537851720,-500.0,0.00015341,2]
[334763520,1723537851731,-500.0,0.00015341,2]
[334763522,1723537851739,-500.0,0.00015341,2]
[334763524,1723537851749,-500.0,0.00015341,2]
[334763526,1723537851759,-500.0,0.00015341,2]
[334763528,1723537851768,-500.0,0.00015341,2]
[334763530,1723537851777,-500.0,0.00015341,2]
[334763532,1723537851786,-500.0,0.00015341,2]
[334763534,1723537851795,-500.0,0.00015341,2]
[334763536,1723537851804,-500.0,0.00015341,2]
[334763538,1723537851814,-498.14637493,0.00015342,2]
[334763540,1723537851823,-500.0,0.00015369,2]
[334763542,1723537851833,-500.0,0.00015369,2]
[334763544,1723537851843,-500.0,0.00015369,2]
[334763546,1723537851852,-297.17939234,0.00015369,2]
[334763548,1723537851862,-500.0,0.00015369,2]
[334763549,1723537851871,-500.0,0.00015369,2]
[334763551,1723537851880,-520.24,0.00015369,2]
[334763553,1723537851890,-500.0,0.00015369,2]
[334763555,1723537851899,-498.77469714,0.00015369,2]
[334763558,1723537851909,-498.27492489,0.00015369,2]
[334763559,1723537851918,-463.46016168,0.00015369,2]
[334763561,1723537851927,-500.0,0.0001537,2]
[334763563,1723537851937,-500.0,0.0001537,2]
[334763565,1723537851946,-500.0,0.0001537,2]
[334763567,1723537851955,-500.0,0.0001537,2]
[334763569,1723537851964,-500.0,0.00015371,2]
[334763571,1723537851973,-500.0,0.00015371,2]
[334763573,1723537851983,-568.39,0.00015371,2]
[334763575,1723537851992,-500.0,0.00015371,2]
[334763577,1723537852001,-500.0,0.00015371,2]
[334763579,1723537852010,-500.0,0.00015371,2]
[334763581,1723537852019,-500.0,0.00015371,2]
[334763583,1723537852028,-500.0,0.00015371,2]
[334763585,1723537852037,-500.0,0.00015371,2]
[334763587,1723537852046,-500.0,0.00015371,2]
[334763589,1723537852055,-500.0,0.00015371,2]
[334763591,1723537852065,-413.72663828,0.00015371,2]
[334763593,1723537852074,-500.0,0.00015371,2]
[334763595,1723537852083,-500.0,0.00015371,2]
[334763597,1723537852092,-788.65,0.00015371,2]
[334763598,1723537852102,-500.0,0.00015605,2]
[334763601,1723537852113,-1078.52,0.00015613,2]
[334763603,1723537852122,-500.0,0.00015613,2]
[334763604,1723537852131,-500.0,0.00015613,2]
[334763606,1723537852140,-500.0,0.00015613,2]
[334763608,1723537852150,-619.04,0.00015613,2]
[334763610,1723537852159,-500.0,0.00015614,2]
[334763612,1723537852169,-500.0,0.00015614,2]
[334763614,1723537852179,-500.0,0.00015614,2]
[334763616,1723537852188,-500.0,0.00015614,2]
[334763618,1723537852197,-1425.34,0.00015614,2]
[334763620,1723537852207,-500.0,0.00015614,2]
[334763622,1723537852216,-500.0,0.00015615,2]
[334763624,1723537852226,-500.0,0.00015615,2]
[334763626,1723537852235,-446.75459993,0.00015615,2]
[334763628,1723537852244,-500.0,0.00015615,2]
[334763630,1723537852253,-500.0,0.00015615,2]
[334763632,1723537852262,-500.0,0.00015615,2]
[334763634,1723537852272,-500.0,0.00015615,2]
[334763636,1723537852281,-500.0,0.00015615,2]
[334763638,1723537852290,-500.0,0.00015615,2]
[334763640,1723537852305,-500.0,0.00015615,2]
[334763642,1723537852317,-500.0,0.00015615,2]
[334763644,1723537852327,-500.0,0.00015615,2]
[334763646,1723537852336,-500.0,0.00015615,2]
[334763648,1723537852346,-500.0,0.00015615,2]
[334763650,1723537852355,-500.0,0.00015615,2]
[334763652,1723537852364,-500.0,0.00015615,2]
[334763654,1723537852375,-500.0,0.00015615,2]
[334763656,1723537852385,-15212.7513429,0.00015623,3]
[334763658,1723537852395,-12890.7917586,0.00015633,3]
[334763660,1723537852404,-500.0,0.00015643,2]
[334763662,1723537852415,-500.0,0.00015643,2]
[334763664,1723537852424,-171.5527133,0.00015643,2]
[334763666,1723537852434,-500.0,0.00015643,2]
[334763668,1723537852443,-500.0,0.00015643,2]
[334763670,1723537852452,-520.24,0.00015643,2]
[334763672,1723537852461,-210.29349847,0.00015643,2]
[334763674,1723537852471,-500.0,0.00015644,2]
[334763676,1723537852479,-500.0,0.00015644,2]
[334763677,1723537852489,-500.0,0.00015644,2]
[334763679,1723537852498,-500.0,0.00015644,2]
[334763681,1723537852507,-500.0,0.00015645,2]
[334763683,1723537852517,-247.28263741,0.00015645,2]
[334763685,1723537852527,-568.39,0.00015645,2]
[334763686,1723537852536,-500.0,0.00015645,2]
[334763687,1723537852545,-440.14562408,0.00015645,2]
[334763688,1723537852554,-500.0,0.00015645,2]
[334763689,1723537852566,-500.0,0.00015645,2]
[334763690,1723537852575,-500.0,0.00015645,2]
[334763691,1723537852584,-500.0,0.00015645,2]
[334763692,1723537852593,-500.0,0.00015645,2]
[334763693,1723537852603,-359.90596916,0.00015645,2]
[334763694,1723537852613,-500.0,0.00015645,2]
[334763695,1723537852623,-500.0,0.00015645,2]
[334763696,1723537852631,-788.65,0.00015645,2]
[334763698,1723537852641,-901.76998133,0.00015681,2]
[334763699,1723537852650,-500.0,0.00015879,2]
[334763701,1723537852660,-15212.7513429,0.00015879,3]
[334763703,1723537852669,-1078.52,0.00015887,2]
[334763705,1723537852679,-500.0,0.00015887,2]
[334763707,1723537852688,-500.0,0.00015887,2]
[334763709,1723537852697,-500.0,0.00015887,2]
[334763711,1723537852708,-619.04,0.00015887,2]
[334763713,1723537852718,-500.0,0.00015888,2]
[334763715,1723537852727,-500.0,0.00015888,2]
[334763717,1723537852736,-500.0,0.00015888,2]
[334763719,1723537852746,-500.0,0.00015888,2]
[334763721,1723537852756,-1425.34,0.00015888,2]
[334763723,1723537852765,-500.0,0.00015888,2]
[334763725,1723537852775,-221.48558712,0.00015889,2]
[334763727,1723537852784,-500.0,0.00015889,2]
[334763729,1723537852793,-500.0,0.00015889,2]
[334763731,1723537852802,-596.90310728,0.00015889,2]
[334763733,1723537852812,-500.0,0.00015889,2]
[334763735,1723537852822,-243.11175253,0.00015889,2]
[334763737,1723537852832,-500.0,0.00015889,2]
[334763739,1723537852841,-500.0,0.00015889,2]
[334763740,1723537852850,-500.0,0.00015889,2]
[334763742,1723537852860,-557.52638234,0.00015889,2]
[334763744,1723537852869,-500.0,0.00015889,2]
[334763746,1723537852878,-500.0,0.00015889,2]
[334763748,1723537852888,-548.72346222,0.00015889,2]
[334763750,1723537852897,-500.0,0.00015889,2]
[334763752,1723537852906,-500.0,0.00015889,2]
[334763754,1723537852916,-500.0,0.00015889,2]
[334763756,1723537852925,-800.0,0.00015898,2]
[334763758,1723537852935,-12890.7917586,0.00015898,3]
[334763765,1723537852990,-15212.7513429,0.00015907,3]
[334763767,1723537853000,-12890.7917586,0.00015909,3]
[334763769,1723537853010,-500.0,0.00015917,2]
[334763771,1723537853019,-500.0,0.00015917,2]
[334763773,1723537853028,-500.0,0.00015917,2]
[334763775,1723537853037,-500.0,0.00015917,2]
[334763777,1723537853047,-520.24,0.00015917,2]
[334763779,1723537853056,-500.0,0.00015917,2]
[334763780,1723537853065,-500.0,0.00015918,2]
[334763782,1723537853074,-500.0,0.00015918,2]
[334763784,1723537853084,-500.0,0.00015918,2]
[334763786,1723537853093,-500.0,0.00015918,2]
[334763788,1723537853102,-500.0,0.00015919,2]
[334763790,1723537853112,-568.39,0.00015919,2]
[334763792,1723537853121,-500.0,0.00015919,2]
[334763794,1723537853131,-500.0,0.00015919,2]
[334763796,1723537853140,-500.0,0.00015919,2]
[334763799,1723537853154,-622.54220886,0.00015919,2]
[334763800,1723537853163,-500.0,0.00015919,2]
[334763802,1723537853172,-500.0,0.00015919,2]
[334763804,1723537853182,-500.0,0.00015919,2]
[334763806,1723537853191,-500.0,0.00015919,2]
[334763808,1723537853201,-788.65,0.00015919,2]
[334763810,1723537853210,-343.73104866,0.00015954,2]
[334763812,1723537853221,-700.0,0.00016,2]
[334763815,1723537853317,-500.0,0.00016153,2]
[334763816,1723537853327,-1078.52,0.00016161,2]
[334763819,1723537853338,-500.0,0.00016161,2]
[334763821,1723537853347,-500.0,0.00016161,2]
[334763822,1723537853357,-500.0,0.00016161,2]
[334763824,1723537853366,-619.04,0.00016161,2]
[334763827,1723537853377,-636.25875213,0.00016162,2]
[334763829,1723537853388,-500.0,0.00016162,2]
[334763831,1723537853398,-500.0,0.00016162,2]
[334763833,1723537853408,-500.0,0.00016162,2]
[334763834,1723537853418,-1425.34,0.00016162,2]
[334763836,1723537853427,-500.0,0.00016162,2]
[334763838,1723537853436,-500.0,0.00016163,2]
[334763840,1723537853446,-500.0,0.00016163,2]
[334763842,1723537853456,-500.0,0.00016163,2]
[334763844,1723537853466,-241.24,0.00016163,2]
[334763846,1723537853476,-490.48597552,0.00016163,2]
[334763848,1723537853485,-644.14,0.00016163,2]
[334763850,1723537853495,-588.36132484,0.00016163,2]
[334763852,1723537853504,-161.69152669,0.00016163,2]
[334763854,1723537853514,-500.0,0.00016163,2]
[334763856,1723537853523,-500.0,0.00016163,2]
[334763858,1723537853532,-500.0,0.00016163,2]
[334763860,1723537853542,-500.0,0.00016191,2]
[334763862,1723537853551,-500.0,0.00016191,2]
[334763864,1723537853561,-500.0,0.00016191,2]
[334763866,1723537853570,-478.63484447,0.00016191,2]
[334763868,1723537853580,-520.24,0.00016191,2]
[334763870,1723537853590,-500.0,0.00016192,2]
[334763872,1723537853600,-500.0,0.00016192,2]
[334763874,1723537853609,-500.0,0.00016192,2]
[334763876,1723537853619,-500.0,0.00016192,2]
[334763878,1723537853628,-506.33627721,0.00016193,2]
[334763880,1723537853637,-568.39,0.00016193,2]
[334763882,1723537853646,-500.0,0.00016193,2]
[334763884,1723537853657,-500.0,0.00016193,2]
[334763886,1723537853666,-500.0,0.00016193,2]
[334763888,1723537853675,-500.0,0.00016193,2]
[334763890,1723537853684,-500.0,0.00016193,2]
[334763892,1723537853693,-500.0,0.00016193,2]
[334763893,1723537853703,-500.0,0.00016193,2]
[334763895,1723537853712,-788.65,0.00016193,2]
[334763898,1723537853722,-15212.7513429,0.00016204,3]
[334763900,1723537853732,-216.05,0.00016214,2]
[334763902,1723537853741,-1000.28,0.00016265,2]
[334763904,1723537853750,-12890.7917586,0.00016309,3]
[334763906,1723537853760,-5653.41196672,0.00016344,2]
[334763907,1723537853769,-587.0,0.00016356,2]
[334763909,1723537853778,-500.0,0.00016427,2]
[334763911,1723537853787,-1078.52,0.00016435,2]
[334763913,1723537853796,-249.98669115,0.00016435,2]
[334763915,1723537853805,-500.0,0.00016435,2]
[334763917,1723537853817,-500.0,0.00016435,2]
[334763919,1723537853827,-619.04,0.00016435,2]
[334763921,1723537853837,-500.0,0.00016436,2]
[334763923,1723537853846,-500.0,0.00016436,2]
[334763925,1723537853855,-500.0,0.00016436,2]
[334763927,1723537853864,-1425.34,0.00016436,2]
[334763929,1723537853874,-453.24242259,0.00016436,2]
[334763931,1723537853883,-500.0,0.00016437,2]
[334763933,1723537853892,-500.0,0.00016437,2]
[334763935,1723537853901,-245.69345319,0.00016437,2]
[334763937,1723537853910,-500.0,0.00016437,2]
[334763939,1723537853919,-500.0,0.00016437,2]
[334763941,1723537853928,-500.0,0.00016437,2]
[334763943,1723537853938,-300.0,0.00016438,2]
[334763945,1723537853947,-15212.7513429,0.00016445,3]
[334763947,1723537853957,-360.0,0.00016448,2]
[334763949,1723537853967,-12890.7917586,0.00016455,3]
[334763951,1723537853976,-500.0,0.00016465,2]
[334763953,1723537853985,-500.0,0.00016465,2]
[334763955,1723537853993,-466.86137786,0.00016465,2]
[334763957,1723537854002,-520.24,0.00016465,2]
[334763959,1723537854011,-500.0,0.00016466,2]
[334763961,1723537854020,-500.0,0.00016466,2]
[334763963,1723537854029,-500.0,0.00016466,2]
[334763965,1723537854039,-500.0,0.00016466,2]
[334763967,1723537854047,-568.39,0.00016467,2]
[334763969,1723537854056,-463.46067683,0.00016467,2]
[334763971,1723537854068,-500.0,0.00016467,2]
[334763973,1723537854077,-500.0,0.00016467,2]
[334763975,1723537854086,-500.0,0.00016467,2]
[334763977,1723537854095,-500.0,0.00016467,2]
[334763979,1723537854104,-500.0,0.00016467,2]
[334763981,1723537854114,-500.0,0.00016467,2]
[334763983,1723537854123,-788.65,0.00016467,2]
[334763985,1723537854132,-3386.63063197,0.00016604,2]
[334763987,1723537854141,-500.0,0.00016701,2]
[334763989,1723537854150,-1078.52,0.00016709,2]
[334763991,1723537854159,-240.22554578,0.00016709,2]
[334763992,1723537854168,-500.0,0.00016709,2]
[334763994,1723537854177,-619.04,0.00016709,2]
[334763996,1723537854187,-500.0,0.0001671,2]
[334763998,1723537854196,-500.0,0.0001671,2]
[334764000,1723537854205,-500.0,0.0001671,2]
[334764002,1723537854214,-1425.34,0.0001671,2]
[334764004,1723537854224,-15212.7513429,0.0001671,3]
[334764006,1723537854233,-500.0,0.00016711,2]
[334764008,1723537854242,-500.0,0.00016711,2]
[334764010,1723537854251,-500.0,0.00016711,2]
[334764012,1723537854260,-433.69759195,0.00016711,2]
[334764014,1723537854269,-500.0,0.00016711,2]
[334764016,1723537854278,-12890.7917586,0.0001672,3]
[334764018,1723537854287,-500.0,0.00016739,2]
[334764020,1723537854299,-439.43685683,0.00016739,2]
[334764022,1723537854309,-520.24,0.00016739,2]
[334764024,1723537854319,-500.0,0.0001674,2]
[334764026,1723537854328,-196.09250517,0.0001674,2]
[334764028,1723537854338,-500.0,0.0001674,2]
[334764030,1723537854347,-500.0,0.0001674,2]
[334764031,1723537854356,-568.39,0.00016741,2]
[334764033,1723537854365,-500.0,0.00016741,2]
[334764035,1723537854377,-500.0,0.00016741,2]
[334764037,1723537854387,-500.0,0.00016741,2]
[334764039,1723537854396,-500.0,0.00016741,2]
[334764041,1723537854405,-500.0,0.00016741,2]
[334764043,1723537854414,-195.40469794,0.00016741,2]
[334764045,1723537854423,-788.65,0.00016741,2]
[334764047,1723537854432,-343.73104866,0.00016884,2]
[334764049,1723537854441,-1000.0,0.000169,6]
[334764051,1723537854450,-2258.0,0.000169,2]
[334764053,1723537854460,-12890.7917586,0.00016957,3]
[334764055,1723537854470,-500.0,0.00016966,2]
[334764057,1723537854479,-15212.7513429,0.00016974,3]
[334764059,1723537854489,-500.0,0.00016975,2]
[334764061,1723537854498,-295.17038545,0.00016976,2]
[334764063,1723537854507,-1078.52,0.00016983,2]
[334764065,1723537854516,-500.0,0.00016983,2]
[334764067,1723537854526,-619.04,0.00016983,2]
[334764069,1723537854535,-500.0,0.00016984,2]
[334764071,1723537854544,-500.0,0.00016984,2]
[334764073,1723537854553,-500.0,0.00016984,2]
[334764075,1723537854564,-1425.34,0.00016984,2]
[334764077,1723537854573,-183.99223492,0.00016985,2]
[334764079,1723537854582,-531.84159634,0.00016985,2]
[334764081,1723537854592,-500.0,0.00016985,2]
[334764083,1723537854602,-500.0,0.00016985,2]
[334764085,1723537854611,-500.0,0.00016986,2]
[334764087,1723537854622,-397.53870218,0.00016986,2]
[334764089,1723537854631,-400.0,0.00017006,2]
[334764091,1723537854640,-518.38534285,0.00017013,2]
[334764093,1723537854649,-520.24,0.00017013,2]
[334764095,1723537854659,-339.63141324,0.00017014,2]
[334764097,1723537854668,-490.34720129,0.00017014,2]
[334764099,1723537854677,-500.0,0.00017014,2]
[334764101,1723537854687,-500.0,0.00017014,2]
[334764103,1723537854697,-500.0,0.00017014,2]
[334764105,1723537854706,-568.39,0.00017015,2]
[334764107,1723537854715,-500.0,0.00017015,2]
[334764109,1723537854724,-500.0,0.00017015,2]
[334764111,1723537854733,-500.0,0.00017015,2]
[334764113,1723537854744,-500.0,0.00017015,2]
[334764115,1723537854754,-500.0,0.00017015,2]
[334764117,1723537854764,-788.65,0.00017015,2]
[334764119,1723537854773,-901.76998133,0.00017218,2]
[334764121,1723537854782,-592.84571009,0.00017249,2]
[334764123,1723537854792,-1078.52,0.00017257,2]
[334764125,1723537854801,-500.0,0.00017257,2]
[334764127,1723537854810,-619.04,0.00017257,2]
[334764129,1723537854821,-500.0,0.00017258,2]
[334764131,1723537854831,-500.0,0.00017258,2]
[334764133,1723537854840,-500.0,0.00017258,2]
[334764135,1723537854849,-1425.34,0.00017258,2]
[334764137,1723537854859,-500.0,0.00017259,2]
[334764139,1723537854868,-500.0,0.00017259,2]
[334764141,1723537854878,-520.24,0.00017287,2]
[334764143,1723537854887,-587.5880187,0.00017288,2]
[334764145,1723537854896,-568.39,0.00017289,2]
[334764147,1723537854905,-500.0,0.00017289,2]
[334764149,1723537854914,-500.0,0.00017289,2]
[334764151,1723537854923,-500.0,0.00017289,2]
[334764153,1723537854932,-500.0,0.00017289,2]
[334764155,1723537854941,-500.0,0.00017289,2]
[334764157,1723537854951,-788.65,0.00017289,2]
[334764159,1723537854960,-2865.93265923,0.00017399,2]
[334764161,1723537854969,-800.0,0.00017488,2]
[334764163,1723537854978,-1000.28,0.0001753,2]
[334764165,1723537854987,-1078.52,0.00017531,2]
[334764167,1723537854997,-500.0,0.00017531,2]
[334764169,1723537855006,-619.04,0.00017531,2]
[334764171,1723537855015,-311.17589532,0.00017532,2]
[334764173,1723537855025,-500.0,0.00017532,2]
[334764175,1723537855034,-581.44179946,0.00017532,2]
[334764177,1723537855043,-1425.34,0.00017532,2]
[334764179,1723537855053,-1198.59025782,0.00017533,2]
[334764181,1723537855062,-500.0,0.00017533,2]
[334764183,1723537855080,-500.0,0.00017533,2]
[334764185,1723537855090,-15212.7513429,0.00017553,3]
[334764187,1723537855099,-520.24,0.00017561,2]
[334764189,1723537855108,-568.39,0.00017563,2]
[334764191,1723537855117,-193.44839029,0.00017563,2]
[334764193,1723537855126,-500.0,0.00017563,2]
[334764194,1723537855135,-500.0,0.00017563,2]
[334764196,1723537855144,-500.0,0.00017563,2]
[334764198,1723537855153,-500.0,0.00017563,2]
[334764200,1723537855162,-788.65,0.00017563,2]
[334764202,1723537855171,-5653.41196672,0.00017567,2]
[334764204,1723537855181,-167.0,0.00017602,2]
[334764206,1723537855190,-414.84500695,0.00017799,2]
[334764208,1723537855199,-1078.52,0.00017805,2]
[334764210,1723537855208,-500.0,0.00017805,2]
[334764212,1723537855217,-619.04,0.00017805,2]
[334764214,1723537855226,-500.0,0.00017806,2]
[334764216,1723537855236,-1425.34,0.00017806,2]
[334764218,1723537855245,-2386.36839346,0.00017807,2]
[334764220,1723537855255,-500.0,0.00017807,2]
[334764222,1723537855264,-500.0,0.00017807,2]
[334764224,1723537855273,-520.24,0.00017835,2]
[334764226,1723537855282,-568.39,0.00017836,2]
[334764228,1723537855295,-500.0,0.00017836,2]
[334764230,1723537855304,-500.0,0.00017836,2]
[334764232,1723537855314,-500.0,0.00017836,2]
[334764234,1723537855323,-500.0,0.00017836,2]
[334764235,1723537855332,-788.65,0.00017836,2]
[334764236,1723537855342,-321.0,0.00017991,2]
[334764237,1723537855352,-750.0,0.00018,2]
[334764238,1723537855362,-676.43950239,0.00018,2]
[334764239,1723537855374,-1078.52,0.00018079,2]
[334764240,1723537855384,-500.0,0.00018079,2]
[334764241,1723537855393,-619.04,0.00018079,2]
[334764242,1723537855403,-500.0,0.0001808,2]
[334764243,1723537855412,-1425.34,0.0001808,2]
[334764244,1723537855421,-500.0,0.00018081,2]
[334764245,1723537855431,-500.0,0.00018081,2]
[334764247,1723537855440,-360.0,0.00018092,2]
[334764249,1723537855449,-15212.7513429,0.000181,3]
[334764251,1723537855459,-520.24,0.00018109,2]
[334764252,1723537855468,-568.39,0.0001811,2]
[334764254,1723537855477,-500.0,0.0001811,2]
[334764256,1723537855486,-500.0,0.0001811,2]
[334764258,1723537855495,-500.0,0.0001811,2]
[334764260,1723537855504,-500.0,0.0001811,2]
[334764262,1723537855513,-788.65,0.0001811,2]
[334764264,1723537855522,-526.77808365,0.00018176,2]
[334764266,1723537855532,-167.0,0.00018183,2]
[334764268,1723537855541,-1078.52,0.00018353,2]
[334764270,1723537855551,-500.0,0.00018353,2]
[334764272,1723537855560,-619.04,0.00018353,2]
[334764274,1723537855572,-500.0,0.00018354,2]
[334764276,1723537855582,-1425.34,0.00018354,2]
[334764278,1723537855591,-500.0,0.00018355,2]
[334764280,1723537855600,-500.0,0.00018355,2]
[334764282,1723537855610,-520.24,0.00018383,2]
[334764284,1723537855619,-568.39,0.00018384,2]
[334764286,1723537855628,-416.82618704,0.00018384,2]
[334764288,1723537855638,-500.0,0.00018384,2]
[334764290,1723537855647,-500.0,0.00018384,2]
[334764292,1723537855657,-500.0,0.00018384,2]
[334764294,1723537855666,-788.65,0.00018384,2]
[334764296,1723537855675,-216.05,0.00018478,2]
[334764298,1723537855684,-500.0,0.00018538,2]
[334764300,1723537855693,-665.97527808,0.00018599,30]
[334764302,1723537855703,-1078.52,0.00018627,2]
[334764304,1723537855712,-500.0,0.00018627,2]
[334764305,1723537855722,-619.04,0.00018627,2]
[334764307,1723537855731,-500.0,0.00018628,2]
[334764309,1723537855741,-1425.34,0.00018628,2]
[334764311,1723537855750,-542.61417022,0.00018629,2]
[334764313,1723537855759,-286.56594044,0.00018629,2]
[334764315,1723537855769,-520.24,0.00018657,2]
[334764317,1723537855779,-568.39,0.00018658,2]
[334764319,1723537855788,-500.0,0.00018658,2]
[334764321,1723537855798,-500.0,0.00018658,2]
[334764323,1723537855806,-500.0,0.00018658,2]
[334764325,1723537855816,-788.65,0.00018658,2]
[334764327,1723537855825,-400.0,0.00018707,2]
[334764329,1723537855834,-901.76998133,0.00018754,2]
[334764331,1723537855844,-167.0,0.00018764,2]
[334764333,1723537855853,-1000.28,0.00018795,2]
[334764335,1723537855862,-155.0,0.00018898,2]
[334764337,1723537855873,-155.0,0.00018898,2]
[334764339,1723537855882,-1500.0,0.000189,6]
[334764341,1723537855892,-1078.52,0.00018901,2]
[334764343,1723537855902,-635.96981463,0.00018901,2]
[334764345,1723537855911,-619.04,0.00018901,2]
[334764347,1723537855920,-500.0,0.00018902,2]
[334764349,1723537855930,-1425.34,0.00018902,2]
[334764351,1723537855939,-15212.7513429,0.00018922,3]
[334764353,1723537855949,-520.24,0.00018931,2]
[334764355,1723537855959,-568.39,0.00018932,2]
[334764357,1723537855969,-500.0,0.00018932,2]
[334764359,1723537855978,-500.0,0.00018932,2]
[334764361,1723537855988,-500.0,0.00018932,2]
[334764364,1723537856006,-788.65,0.00018932,2]
[334764366,1723537856017,-5835.91350523,0.00018998,2]
[334764368,1723537856027,-581.41732431,0.00018999,2]
[334764370,1723537856037,-1241.94531846,0.00019,2]
[334764372,1723537856047,-155.0,0.00019,2]
[334764374,1723537856057,-500.0,0.00019066,2]
[334764376,1723537856069,-15212.7513429,0.00019067,3]
[334764378,1723537856079,-200.0,0.00019073,2]
[334764380,1723537856089,-504.73963542,0.00019077,2]
[334764382,1723537856099,-505.12784167,0.00019077,2]
[334764384,1723537856108,-502.9845992,0.00019077,2]
[334764386,1723537856119,-503.82690833,0.00019077,2]
[334764388,1723537856129,-504.30589652,0.00019077,2]
[334764390,1723537856139,-502.66463817,0.00019077,2]
[334764392,1723537856149,-503.93669419,0.00019077,2]
[334764394,1723537856159,-500.0,0.00019077,2]
[334764396,1723537856169,-502.96065856,0.00019077,2]
[334764398,1723537856180,-500.0,0.00019077,2]
[334764400,1723537856190,-481.14634062,0.00019077,2]
[334764402,1723537856201,-501.55666513,0.00019077,2]
[334764404,1723537856211,-506.24019701,0.00019077,2]
[334764406,1723537856220,-509.15815652,0.00019077,2]
[334764408,1723537856231,-506.79551375,0.00019077,2]
[334764410,1723537856241,-503.59251231,0.00019077,2]
[334764412,1723537856251,-502.58915515,0.00019077,2]
[334764414,1723537856261,-502.81944846,0.00019077,2]
[334764416,1723537856270,-500.0,0.00019077,2]
[334764418,1723537856280,-503.67036431,0.00019077,2]
[334764420,1723537856291,-503.49916209,0.00019077,2]
[334764422,1723537856305,-505.89279921,0.00019077,2]
[334764424,1723537856317,-500.0,0.00019077,2]
[334764426,1723537856328,-503.48138646,0.00019077,2]
[334764428,1723537856339,-502.50970311,0.00019077,2]
[334764430,1723537856350,-435.51119228,0.00019077,2]
[334764432,1723537856361,-285.77964409,0.00019077,2]
[334764434,1723537856373,-502.95602037,0.00019077,2]